[Event "*** Monthly 3|2 Blitz Masters"]
[Site "Chess.com"]
[Date "2014.10.28"]
[Round "3"]
[White "Time2Pretend"]
[Black "GeorgMeier"]
[Result "0-1"]
[WhiteElo "2324"]
[BlackElo "2525"]
[TimeControl "180+2"]
[EndTime "12:29:26 PDT"]
[Termination "GeorgMeier won by resignation"]

1. d4 {[%clk 0:03:00]} 1... e6 {[%clk 0:02:59]} 2. c4 {[%clk 0:03:01.1]} 2...
Nf6 {[%clk 0:03:00]} 3. Nc3 {[%clk 0:03:01.8]} 3... d5 {[%clk 0:03:00.9]} 4.
cxd5 {[%clk 0:03:02.1]} 4... exd5 {[%clk 0:03:02.8]} 5. Bg5 {[%clk 0:03:03.2]}
5... c6 {[%clk 0:03:04.1]} 6. Qc2 {[%clk 0:03:01.9]} 6... Nbd7 {[%clk
0:03:02.7]} 7. e3 {[%clk 0:03:02.8]} 7... Be7 {[%clk 0:03:04]} 8. Bd3 {[%clk
0:03:04]} 8... h6 {[%clk 0:03:04.6]} 9. Bh4 {[%clk 0:02:59.2]} 9... Nh5 {[%clk
0:03:05.6]} 10. Bxe7 {[%clk 0:02:58.8]} 10... Qxe7 {[%clk 0:03:07.5]} 11. Nge2
{[%clk 0:02:59.9]} 11... Nb6 {[%clk 0:03:06.2]} 12. Na4 {[%clk 0:02:56.5]} 12...
Qb4+ {[%clk 0:02:58.5]} 13. Nec3 {[%clk 0:02:57]} 13... Nxa4 {[%clk 0:02:58.9]}
14. Qxa4 {[%clk 0:02:57.9]} 14... Qxb2 {[%clk 0:02:51.6]} 15. Nd1 {[%clk
0:02:44.2]} 15... Qxa1 {[%clk 0:02:50.5]} 16. O-O {[%clk 0:02:32.9]} 16... O-O
{[%clk 0:02:43.8]} 17. Qc2 {[%clk 0:02:31.5]} 17... Nf6 {[%clk 0:02:39.5]} 18.
Nc3 {[%clk 0:02:32]} 18... Qxf1+ {[%clk 0:02:40.5]} 19. Kxf1 {[%clk 0:02:31.6]}
19... Be6 {[%clk 0:02:42]} 20. Na4 {[%clk 0:02:30.3]} 20... b6 {[%clk
0:02:43.1]} 21. Qxc6 {[%clk 0:02:26.3]} 21... Bd7 {[%clk 0:02:44.1]} 22. Qc2
{[%clk 0:02:26.4]} 22... Rfc8 {[%clk 0:02:43.5]} 23. Nc3 {[%clk 0:02:22.7]}
23... Rc7 {[%clk 0:02:37.3]} 24. Qb2 {[%clk 0:02:23.8]} 24... Rac8 {[%clk
0:02:36.6]} 25. Ne2 {[%clk 0:02:24.9]} 25... Ba4 {[%clk 0:02:33.1]} 26. f3
{[%clk 0:02:23.1]} 26... b5 {[%clk 0:02:28.4]} 27. g4 {[%clk 0:02:15]} 27... a6
{[%clk 0:02:25.2]} 28. h4 {[%clk 0:02:15.5]} 28... Bc2 {[%clk 0:02:26.1]} 29.
Bxc2 {[%clk 0:02:11.2]} 29... Rxc2 {[%clk 0:02:25.4]} 30. Qa3 {[%clk 0:02:12.3]}
30... Re8 {[%clk 0:01:59.8]} 31. Kf2 {[%clk 0:02:02]} 31... Re6 {[%clk
0:01:56.9]} 32. g5 {[%clk 0:01:58.3]} 32... hxg5 {[%clk 0:01:57.5]} 33. hxg5
{[%clk 0:01:59.6]} 33... Nh5 {[%clk 0:01:57.2]} 34. f4 {[%clk 0:01:50.3]} 34...
Ng3 {[%clk 0:01:50.6]} 35. Kxg3 {[%clk 0:01:51.2]} 35... Rxe2 {[%clk 0:01:51.9]}
36. Qc5 {[%clk 0:01:47.9]} 36... R6xe3+ {[%clk 0:01:45.1]} 37. Kg4 {[%clk
0:01:48.5]} 37... Rg2+ {[%clk 0:01:42.3]} 38. Kh4 {[%clk 0:01:43.3]} 38... g6
{[%clk 0:01:41.3]} 39. Qxd5 {[%clk 0:01:38.2]} 39... Rge2 {[%clk 0:01:19.2]} 40.
Qd8+ {[%clk 0:01:31.3]} 40... Re8 {[%clk 0:01:19.9]} 41. Qd7 {[%clk 0:01:22.9]}
41... R2e7 {[%clk 0:01:12.2]} 42. Qc6 {[%clk 0:01:21.6]} 42... Rd8 {[%clk
0:01:07.3]} 43. d5 {[%clk 0:00:38.2]} 43... Red7 {[%clk 0:01:07.7]} 44. f5
{[%clk 0:00:39.5]} 44... Rd6 {[%clk 0:01:02]} 45. Qc2 {[%clk 0:00:35.1]} 45...
gxf5 {[%clk 0:01:02.3]} 46. Kh5 {[%clk 0:00:25]} 46... Rxd5 {[%clk 0:00:30.3]}
47. g6 {[%clk 0:00:25.9]} 47... fxg6+ {[%clk 0:00:19.7]} 48. Kxg6 {[%clk
0:00:25.3]} 48... f4 {[%clk 0:00:20.5]} 49. Qc7 {[%clk 0:00:21.3]} 49... R8d6+
{[%clk 0:00:20.6]} 0-1

[Event "*** Monthly 3|2 Blitz Masters"]
[Site "Chess.com"]
[Date "2014.10.28"]
[Round "3"]
[White "liczner"]
[Black "Alexander_Donchenko"]
[Result "0-1"]
[WhiteElo "2407"]
[BlackElo "2325"]
[TimeControl "180+2"]
[EndTime "12:30:16 PDT"]
[Termination "Alexander_Donchenko won on time"]

1. e4 {[%clk 0:02:52.5]} 1... c6 {[%clk 0:02:59.1]} 2. d4 {[%clk 0:02:52.5]}
2... d5 {[%clk 0:03:00.5]} 3. exd5 {[%clk 0:02:54.1]} 3... cxd5 {[%clk
0:03:00.7]} 4. c4 {[%clk 0:02:56]} 4... f6 {[%clk 0:03:02.6]} 5. Nc3 {[%clk
0:02:57.6]} 5... dxc4 {[%clk 0:03:00.9]} 6. Bxc4 {[%clk 0:02:57.1]} 6... e6
{[%clk 0:03:02]} 7. Nf3 {[%clk 0:02:54.3]} 7... Ne7 {[%clk 0:03:01.3]} 8. O-O
{[%clk 0:02:54.6]} 8... Nd5 {[%clk 0:03:01.4]} 9. Re1 {[%clk 0:02:52.8]} 9...
Be7 {[%clk 0:03:02.4]} 10. Qb3 {[%clk 0:02:48.1]} 10... Nc7 {[%clk 0:02:46.7]}
11. Bf4 {[%clk 0:02:15.8]} 11... Bd6 {[%clk 0:02:44.2]} 12. Bxd6 {[%clk
0:02:08.8]} 12... Qxd6 {[%clk 0:02:46.1]} 13. Nb5 {[%clk 0:01:53.6]} 13... Nxb5
{[%clk 0:02:45.1]} 14. Qxb5+ {[%clk 0:01:53.4]} 14... Kf7 {[%clk 0:02:32.5]} 15.
Re3 {[%clk 0:01:33.7]} 15... a6 {[%clk 0:02:25.3]} 16. Qh5+ {[%clk 0:01:18.8]}
16... g6 {[%clk 0:02:26.6]} 17. Qh6 {[%clk 0:01:17.1]} 17... Nc6 {[%clk
0:02:14.9]} 18. Rae1 {[%clk 0:01:15.2]} 18... Nd8 {[%clk 0:02:10.7]} 19. d5
{[%clk 0:00:38.9]} 19... e5 {[%clk 0:02:10.6]} 20. Nxe5+ {[%clk 0:00:25.5]}
20... fxe5 {[%clk 0:02:08.1]} 21. Rxe5 {[%clk 0:00:26.9]} 21... Bd7 {[%clk
0:01:35.5]} 22. Re7+ {[%clk 0:00:25.8]} 22... Qxe7 {[%clk 0:01:35.6]} 23. Rxe7+
{[%clk 0:00:26.4]} 23... Kxe7 {[%clk 0:01:36.6]} 24. Qg7+ {[%clk 0:00:27.9]}
24... Nf7 {[%clk 0:01:38.1]} 25. d6+ {[%clk 0:00:29.3]} 25... Kxd6 {[%clk
0:01:39.7]} 26. Bxf7 {[%clk 0:00:27.3]} 26... Rac8 {[%clk 0:01:36]} 27. Qf6+
{[%clk 0:00:22.7]} 27... Kc7 {[%clk 0:01:34.9]} 28. Qe5+ {[%clk 0:00:21.8]}
28... Kb6 {[%clk 0:01:34.3]} 29. Qd4+ {[%clk 0:00:23.2]} 29... Kc7 {[%clk
0:01:34.3]} 30. Qe5+ {[%clk 0:00:20.3]} 30... Kb6 {[%clk 0:01:34.9]} 31. Qd4+
{[%clk 0:00:21.6]} 31... Kc7 {[%clk 0:01:36]} 32. h4 {[%clk 0:00:22.7]} 32...
Bc6 {[%clk 0:01:31.8]} 33. Qe5+ {[%clk 0:00:22.3]} 33... Kb6 {[%clk 0:01:33]}
34. Qd4+ {[%clk 0:00:23.8]} 34... Kc7 {[%clk 0:01:34.2]} 35. Be6 {[%clk
0:00:22.9]} 35... Rcd8 {[%clk 0:01:31.3]} 36. Qf4+ {[%clk 0:00:23.5]} 36... Kb6
{[%clk 0:01:31.6]} 37. Qe3+ {[%clk 0:00:23.4]} 37... Kc7 {[%clk 0:01:33.1]} 38.
a4 {[%clk 0:00:19.5]} 38... Kb8 {[%clk 0:01:30.7]} 39. Qf4+ {[%clk 0:00:15.9]}
39... Ka8 {[%clk 0:01:31]} 40. a5 {[%clk 0:00:13.6]} 40... Rhe8 {[%clk
0:01:30.8]} 41. Bc4 {[%clk 0:00:13.3]} 41... Re4 {[%clk 0:01:30.1]} 42. Qf7
{[%clk 0:00:09.8]} 42... Rxh4 {[%clk 0:01:23.8]} 43. f3 {[%clk 0:00:11.1]} 43...
Rhd4 {[%clk 0:01:19.2]} 44. b3 {[%clk 0:00:10.4]} 44... Rd1+ {[%clk 0:01:18]}
45. Kh2 {[%clk 0:00:11]} 45... R1d7 {[%clk 0:01:18.7]} 46. Qf6 {[%clk
0:00:10.1]} 46... Rd6 {[%clk 0:01:19.2]} 47. Qe7 {[%clk 0:00:10.6]} 47... h5
{[%clk 0:01:17.5]} 48. Qc7 {[%clk 0:00:09.4]} 48... g5 {[%clk 0:01:14]} 49. Qe7
{[%clk 0:00:09]} 49... g4 {[%clk 0:01:14.3]} 50. fxg4 {[%clk 0:00:02.6]} 50...
hxg4 {[%clk 0:01:16.2]} 51. Kg3 {[%clk 0:00:03]} 51... Rd2 {[%clk 0:01:14]} 52.
Bf1 {[%clk 0:00:03.8]} 52... Re8 {[%clk 0:01:13.4]} 53. Qc7 {[%clk 0:00:03.8]}
53... Re3+ {[%clk 0:01:09.2]} 54. Kh4 {[%clk 0:00:04.4]} 54... g3 {[%clk
0:01:03.4]} 55. Bxa6 {[%clk 0:00:04.2]} 55... Rd4+ {[%clk 0:00:48.2]} 56. Kg5
{[%clk 0:00:04.9]} 56... Rxb3 {[%clk 0:00:42.1]} 57. Bf1 {[%clk 0:00:03.7]}
57... Rd7 {[%clk 0:00:37.3]} 58. Qc8+ {[%clk 0:00:03.4]} 58... Ka7 {[%clk
0:00:38.7]} 59. Qg8 {[%clk 0:00:03.4]} 59... Ra3 {[%clk 0:00:35.9]} 0-1

[Event "*** Monthly 3|2 Blitz Masters"]
[Site "Chess.com"]
[Date "2014.10.28"]
[Round "3"]
[White "GMHess"]
[Black "Palacios-LLera"]
[Result "1-0"]
[WhiteElo "2439"]
[BlackElo "2208"]
[TimeControl "180+2"]
[EndTime "12:30:24 PDT"]
[Termination "GMHess won by resignation"]

1. Nf3 {[%clk 0:03:00]} 1... d5 {[%clk 0:02:58.5]} 2. g3 {[%clk 0:02:59.3]} 2...
c6 {[%clk 0:02:59.7]} 3. Bg2 {[%clk 0:03:00.7]} 3... Bg4 {[%clk 0:02:59.1]} 4.
O-O {[%clk 0:03:01.9]} 4... Nd7 {[%clk 0:02:59.8]} 5. d3 {[%clk 0:03:02.7]} 5...
e5 {[%clk 0:03:00.8]} 6. Nbd2 {[%clk 0:03:01.8]} 6... Be7 {[%clk 0:03:01.4]} 7.
e4 {[%clk 0:03:03]} 7... dxe4 {[%clk 0:03:02.5]} 8. dxe4 {[%clk 0:03:03.9]} 8...
Ngf6 {[%clk 0:03:03.1]} 9. h3 {[%clk 0:02:58]} 9... Bh5 {[%clk 0:03:03.7]} 10.
c3 {[%clk 0:02:58.6]} 10... O-O {[%clk 0:03:04]} 11. Qe2 {[%clk 0:02:52.9]}
11... Re8 {[%clk 0:03:05.1]} 12. Rd1 {[%clk 0:02:37.7]} 12... Qc7 {[%clk
0:03:06.2]} 13. g4 {[%clk 0:02:23.2]} 13... Bg6 {[%clk 0:03:06.6]} 14. Nh4
{[%clk 0:02:14.6]} 14... Nc5 {[%clk 0:03:07.2]} 15. Nf5 {[%clk 0:02:08.1]} 15...
Bf8 {[%clk 0:03:08.3]} 16. Nc4 {[%clk 0:02:03.6]} 16... b5 {[%clk 0:03:02.3]}
17. Na3 {[%clk 0:01:50.8]} 17... Ne6 {[%clk 0:02:57.1]} 18. Nc2 {[%clk
0:01:47.1]} 18... Rad8 {[%clk 0:02:56.5]} 19. Be3 {[%clk 0:01:45.3]} 19... Nd7
{[%clk 0:02:56.4]} 20. Nb4 {[%clk 0:01:38.2]} 20... f6 {[%clk 0:02:44.3]} 21. h4
{[%clk 0:01:18.5]} 21... a5 {[%clk 0:02:39.8]} 22. Nc2 {[%clk 0:01:16.5]} 22...
Nb6 {[%clk 0:02:36.2]} 23. b3 {[%clk 0:01:09]} 23... Bf7 {[%clk 0:02:36.5]} 24.
g5 {[%clk 0:00:58.9]} 24... fxg5 {[%clk 0:02:33.3]} 25. hxg5 {[%clk 0:01:00.8]}
25... a4 {[%clk 0:02:23.7]} 26. Nb4 {[%clk 0:00:45.5]} 26... Nf4 {[%clk
0:02:11.5]} 27. Bxf4 {[%clk 0:00:35.5]} 27... exf4 {[%clk 0:02:12.5]} 28. Nd4
{[%clk 0:00:27.3]} 28... Rxd4 {[%clk 0:01:39.4]} 29. Rxd4 {[%clk 0:00:15.8]}
29... c5 {[%clk 0:01:40.7]} 30. Rdd1 {[%clk 0:00:07.2]} 30... cxb4 {[%clk
0:01:39.7]} 31. cxb4 {[%clk 0:00:09.1]} 31... axb3 {[%clk 0:01:39]} 32. axb3
{[%clk 0:00:10.6]} 32... Bxb3 {[%clk 0:01:40]} 33. Rdc1 {[%clk 0:00:11.8]} 33...
Bc4 {[%clk 0:01:40.7]} 34. Qh5 {[%clk 0:00:13.1]} 34... g6 {[%clk 0:01:40.1]}
35. Qg4 {[%clk 0:00:13.9]} 35... Bg7 {[%clk 0:01:39.5]} 36. Ra5 {[%clk
0:00:13.6]} 36... Qb8 {[%clk 0:01:07.7]} 37. Ra6 {[%clk 0:00:11.4]} 37... Be5
{[%clk 0:01:07.2]} 38. Rd1 {[%clk 0:00:09.8]} 38... Be6 {[%clk 0:01:05.9]} 39.
Qh4 {[%clk 0:00:10]} 39... Nc4 {[%clk 0:01:05.2]} 40. Rxe6 {[%clk 0:00:09]}
40... Rxe6 {[%clk 0:01:05.9]} 41. Rd7 {[%clk 0:00:10.1]} 41... Bg7 {[%clk
0:01:05.3]} 42. Qg4 {[%clk 0:00:11.5]} 42... Qe8 {[%clk 0:01:04.8]} 43. Rd5
{[%clk 0:00:10.7]} 43... Ne5 {[%clk 0:01:05.3]} 44. Qd1 {[%clk 0:00:11.6]} 44...
f3 {[%clk 0:01:05.8]} 45. Rd8 {[%clk 0:00:12.6]} 45... fxg2 {[%clk 0:01:06.4]}
46. Rxe8+ {[%clk 0:00:13.9]} 46... Rxe8 {[%clk 0:01:07.6]} 47. Qd5+ {[%clk
0:00:15.7]} 47... Kh8 {[%clk 0:01:07.9]} 48. Qxb5 {[%clk 0:00:17.4]} 48... Rf8
{[%clk 0:01:06.2]} 49. Kxg2 {[%clk 0:00:18.6]} 49... Nf3 {[%clk 0:01:05.2]} 50.
Qd5 {[%clk 0:00:19.4]} 50... Ne1+ {[%clk 0:01:03.9]} 51. Kf1 {[%clk 0:00:16.8]}
51... Nf3 {[%clk 0:01:05.1]} 52. b5 {[%clk 0:00:17]} 52... Bd4 {[%clk
0:01:03.5]} 53. Ke2 {[%clk 0:00:11.8]} 53... Be5 {[%clk 0:00:57]} 54. b6 {[%clk
0:00:11]} 54... Nd4+ {[%clk 0:00:54]} 55. Kd3 {[%clk 0:00:08.7]} 55... Nf3
{[%clk 0:00:54.9]} 56. b7 {[%clk 0:00:09]} 56... Kg7 {[%clk 0:00:54.9]} 57. Qd7+
{[%clk 0:00:09.7]} 57... Rf7 {[%clk 0:00:55.6]} 58. Qc8 {[%clk 0:00:10.6]} 58...
Rf8 {[%clk 0:00:56]} 59. Qd7+ {[%clk 0:00:08.1]} 59... Rf7 {[%clk 0:00:57.3]}
60. Qd5 {[%clk 0:00:09]} 60... Bh2 {[%clk 0:00:57.2]} 61. Ke2 {[%clk 0:00:07.3]}
61... Be5 {[%clk 0:00:55.3]} 62. Qxe5+ {[%clk 0:00:07.4]} 62... Nxe5 {[%clk
0:00:55.8]} 63. b8=Q {[%clk 0:00:09.3]} 63... Nf3 {[%clk 0:00:56.2]} 64. Qd8
{[%clk 0:00:08.3]} 64... Ne5 {[%clk 0:00:53.2]} 65. Qd4 {[%clk 0:00:07.7]} 65...
Re7 {[%clk 0:00:52.4]} 66. f4 {[%clk 0:00:08.8]} 66... Kf7 {[%clk 0:00:51.5]}
67. fxe5 {[%clk 0:00:09.9]} 67... Ke8 {[%clk 0:00:47.7]} 68. Qd5 {[%clk
0:00:10.4]} 68... Kf8 {[%clk 0:00:44.7]} 69. e6 {[%clk 0:00:10.7]} 1-0

[Event "*** Monthly 3|2 Blitz Masters"]
[Site "Chess.com"]
[Date "2014.10.28"]
[Round "3"]
[White "SabinaFoisor"]
[Black "Danesz22"]
[Result "0-1"]
[WhiteElo "2268"]
[BlackElo "2472"]
[TimeControl "180+2"]
[EndTime "12:30:25 PDT"]
[Termination "Danesz22 won by resignation"]

1. d4 {[%clk 0:02:59.2]} 1... Nf6 {[%clk 0:02:58.5]} 2. c4 {[%clk 0:02:59.7]}
2... g6 {[%clk 0:02:59.3]} 3. Nc3 {[%clk 0:03:00.5]} 3... Bg7 {[%clk 0:03:00]}
4. e4 {[%clk 0:03:00.1]} 4... d6 {[%clk 0:03:00.4]} 5. Nf3 {[%clk 0:03:01.1]}
5... O-O {[%clk 0:03:00.8]} 6. Be2 {[%clk 0:03:02.1]} 6... Na6 {[%clk
0:03:01.7]} 7. O-O {[%clk 0:03:00.7]} 7... e5 {[%clk 0:03:02.6]} 8. d5 {[%clk
0:02:56.6]} 8... Nc5 {[%clk 0:03:02.8]} 9. Qc2 {[%clk 0:02:50.6]} 9... a5 {[%clk
0:03:03.3]} 10. Rb1 {[%clk 0:02:38.3]} 10... Nh5 {[%clk 0:03:00.2]} 11. Ne1
{[%clk 0:02:26.2]} 11... Nf4 {[%clk 0:02:59.8]} 12. b3 {[%clk 0:01:45]} 12... f5
{[%clk 0:02:57]} 13. f3 {[%clk 0:01:41.9]} 13... fxe4 {[%clk 0:02:53.2]} 14.
fxe4 {[%clk 0:01:36.9]} 14... Bd7 {[%clk 0:02:32.2]} 15. a3 {[%clk 0:01:35.2]}
15... a4 {[%clk 0:02:33.1]} 16. b4 {[%clk 0:01:34.9]} 16... Nb3 {[%clk
0:02:33.1]} 17. Be3 {[%clk 0:01:28.6]} 17... Nd4 {[%clk 0:02:31.4]} 18. Bxd4
{[%clk 0:01:21.8]} 18... exd4 {[%clk 0:02:31.8]} 19. Nb5 {[%clk 0:01:20]} 19...
Qg5 {[%clk 0:02:19.7]} 20. Bf3 {[%clk 0:01:15.9]} 20... d3 {[%clk 0:02:15.3]}
21. Nxd3 {[%clk 0:01:14.8]} 21... Bxb5 {[%clk 0:01:54.7]} 22. cxb5 {[%clk
0:01:11.4]} 22... Bd4+ {[%clk 0:01:55]} 23. Kh1 {[%clk 0:01:12.3]} 23... Nxd3
{[%clk 0:01:47.9]} 24. Qxd3 {[%clk 0:01:13.1]} 24... Be5 {[%clk 0:01:48.7]} 25.
Be2 {[%clk 0:00:53.4]} 25... Rxf1+ {[%clk 0:01:39.5]} 26. Rxf1 {[%clk
0:00:53.4]} 26... Rf8 {[%clk 0:01:40.1]} 27. Rxf8+ {[%clk 0:00:50.7]} 27... Kxf8
{[%clk 0:01:40.8]} 28. g3 {[%clk 0:00:49.4]} 28... Qc1+ {[%clk 0:01:39.3]} 29.
Kg2 {[%clk 0:00:50.5]} 29... Qc3 {[%clk 0:01:14]} 30. Qxc3 {[%clk 0:00:48.3]}
30... Bxc3 {[%clk 0:01:14.7]} 31. Bd1 {[%clk 0:00:49.6]} 31... Bb2 {[%clk
0:01:14.7]} 32. Bxa4 {[%clk 0:00:50.4]} 32... Bxa3 {[%clk 0:01:15.7]} 33. b6
{[%clk 0:00:46.2]} 33... cxb6 {[%clk 0:01:16.4]} 34. b5 {[%clk 0:00:47.1]} 34...
Ke7 {[%clk 0:01:16.4]} 35. Kf3 {[%clk 0:00:45.8]} 35... Kf6 {[%clk 0:01:17.2]}
36. Bd1 {[%clk 0:00:41.9]} 36... Bc1 {[%clk 0:01:16.6]} 37. Ke2 {[%clk
0:00:41.9]} 37... Ke5 {[%clk 0:01:17.4]} 38. Kd3 {[%clk 0:00:42.9]} 38... Ba3
{[%clk 0:01:15.9]} 39. Bf3 {[%clk 0:00:38.3]} 39... Bc5 {[%clk 0:01:16.4]} 40.
Bg4 {[%clk 0:00:30.8]} 40... Bg1 {[%clk 0:01:12.4]} 41. h3 {[%clk 0:00:31]}
41... Bf2 {[%clk 0:01:13]} 42. Be6 {[%clk 0:00:31.1]} 42... Bxg3 {[%clk
0:01:12.8]} 43. Bg8 {[%clk 0:00:30.9]} 43... h6 {[%clk 0:01:12.1]} 44. Bh7
{[%clk 0:00:31.4]} 44... g5 {[%clk 0:01:12.6]} 45. Bf5 {[%clk 0:00:32.1]} 45...
Bf2 {[%clk 0:01:12.7]} 46. Bg4 {[%clk 0:00:32.5]} 46... Bd4 {[%clk 0:01:12.6]}
47. Bh5 {[%clk 0:00:32.4]} 47... Ba1 {[%clk 0:01:13.1]} 48. Ke3 {[%clk
0:00:33.1]} 48... Bd4+ {[%clk 0:01:11.2]} 49. Kd3 {[%clk 0:00:28.6]} 49... Bc5
{[%clk 0:01:11.9]} 50. Bg4 {[%clk 0:00:29.3]} 50... Kf4 {[%clk 0:01:12.7]} 51.
Bf5 {[%clk 0:00:26.2]} 51... Ba3 {[%clk 0:01:12.7]} 52. Bg4 {[%clk 0:00:27.1]}
52... Bb2 {[%clk 0:01:13.3]} 53. Bf5 {[%clk 0:00:27.1]} 53... Be5 {[%clk
0:01:14]} 54. Bg4 {[%clk 0:00:26.1]} 54... Bg7 {[%clk 0:01:13.1]} 55. Bc8 {[%clk
0:00:23.5]} 55... h5 {[%clk 0:01:13.4]} 56. Bxb7 {[%clk 0:00:23.6]} 56... g4
{[%clk 0:01:14.6]} 57. hxg4 {[%clk 0:00:24.6]} 57... Kxg4 {[%clk 0:01:14]} 58.
Ke2 {[%clk 0:00:24.7]} 58... Kg3 {[%clk 0:01:14.6]} 59. Kf1 {[%clk 0:00:25.6]}
59... Bd4 {[%clk 0:01:15.5]} 60. e5 {[%clk 0:00:21.9]} 60... h4 {[%clk
0:01:01.7]} 61. Bc8 {[%clk 0:00:22.4]} 61... h3 {[%clk 0:00:53.5]} 62. Bxh3
{[%clk 0:00:23.1]} 62... Kxh3 {[%clk 0:00:53.7]} 63. exd6 {[%clk 0:00:24.1]}
63... Kg4 {[%clk 0:00:51.4]} 64. d7 {[%clk 0:00:23.4]} 64... Bf6 {[%clk
0:00:52.1]} 65. Ke2 {[%clk 0:00:25]} 65... Kf5 {[%clk 0:00:52]} 66. Kd3 {[%clk
0:00:20]} 66... Ke5 {[%clk 0:00:52.8]} 67. Kc4 {[%clk 0:00:21.3]} 67... Bd8
{[%clk 0:00:53.5]} 68. d6 {[%clk 0:00:18.5]} 68... Kxd6 {[%clk 0:00:54]} 69. Kd4
{[%clk 0:00:19.9]} 69... Kxd7 {[%clk 0:00:54.7]} 70. Kd5 {[%clk 0:00:21]} 70...
Bc7 {[%clk 0:00:55.4]} 71. Kc4 {[%clk 0:00:20.9]} 71... Kd6 {[%clk 0:00:56.2]}
72. Kd4 {[%clk 0:00:22.3]} 72... Bd8 {[%clk 0:00:57]} 0-1

[Event "*** Monthly 3|2 Blitz Masters"]
[Site "Chess.com"]
[Date "2014.10.28"]
[Round "3"]
[White "VovAn1991"]
[Black "exoticprincess"]
[Result "0-1"]
[WhiteElo "2374"]
[BlackElo "2543"]
[TimeControl "180+2"]
[EndTime "12:30:39 PDT"]
[Termination "exoticprincess won by resignation"]

1. e4 {[%clk 0:03:00]} 1... c6 {[%clk 0:02:58.5]} 2. d4 {[%clk 0:02:59.8]} 2...
d5 {[%clk 0:03:00.4]} 3. Nc3 {[%clk 0:03:01]} 3... dxe4 {[%clk 0:03:00.5]} 4.
Nxe4 {[%clk 0:03:02.9]} 4... Bf5 {[%clk 0:03:01.5]} 5. Ng3 {[%clk 0:03:04]} 5...
Bg6 {[%clk 0:03:02.3]} 6. Nh3 {[%clk 0:03:05.2]} 6... e6 {[%clk 0:03:02.4]} 7.
Nf4 {[%clk 0:03:05.2]} 7... Qc7 {[%clk 0:03:03.1]} 8. h4 {[%clk 0:03:03.5]} 8...
Bd6 {[%clk 0:03:03.4]} 9. h5 {[%clk 0:03:02.3]} 9... Bxc2 {[%clk 0:02:59.3]} 10.
Nxe6 {[%clk 0:02:48.4]} 10... Bxd1 {[%clk 0:02:37]} 11. Nxc7+ {[%clk 0:02:48.2]}
11... Bxc7 {[%clk 0:02:38.6]} 12. Kxd1 {[%clk 0:02:49.8]} 12... Bxg3 {[%clk
0:02:38.1]} 13. fxg3 {[%clk 0:02:51.3]} 13... Nd7 {[%clk 0:02:34.3]} 14. d5
{[%clk 0:02:44.9]} 14... cxd5 {[%clk 0:02:30]} 15. Bf4 {[%clk 0:02:45.2]} 15...
Ngf6 {[%clk 0:02:25.8]} 16. h6 {[%clk 0:02:45.9]} 16... g6 {[%clk 0:02:25.4]}
17. Rc1 {[%clk 0:02:42.4]} 17... Ne4 {[%clk 0:02:19.8]} 18. Rg1 {[%clk
0:02:36.2]} 18... g5 {[%clk 0:01:54.9]} 19. Be3 {[%clk 0:02:28.9]} 19... Kd8
{[%clk 0:01:50.5]} 20. Bd4 {[%clk 0:02:26.7]} 20... Re8 {[%clk 0:01:50.4]} 21.
Bd3 {[%clk 0:02:26.6]} 21... f6 {[%clk 0:01:33.7]} 22. g4 {[%clk 0:02:20.3]}
22... Rc8 {[%clk 0:01:31.2]} 23. Rxc8+ {[%clk 0:02:15.8]} 23... Kxc8 {[%clk
0:01:33.1]} 24. Rf1 {[%clk 0:02:17.5]} 24... Kc7 {[%clk 0:01:20.5]} 25. Rf5
{[%clk 0:02:02.2]} 25... Kd6 {[%clk 0:01:17.6]} 26. Bb5 {[%clk 0:01:42.5]} 26...
a6 {[%clk 0:00:56]} 27. Ba4 {[%clk 0:01:43.2]} 27... b5 {[%clk 0:00:53.1]} 28.
Bb3 {[%clk 0:01:44.2]} 28... Ne5 {[%clk 0:00:54]} 29. a4 {[%clk 0:01:28.9]}
29... Re6 {[%clk 0:00:54.3]} 30. a5 {[%clk 0:01:25.2]} 30... Nc5 {[%clk
0:00:54.1]} 31. Bc2 {[%clk 0:01:15.8]} 31... Nxg4 {[%clk 0:00:54]} 32. Rf3
{[%clk 0:01:01.7]} 32... Ne4 {[%clk 0:00:54.5]} 33. b4 {[%clk 0:01:01.2]} 33...
Ne5 {[%clk 0:00:50.5]} 34. Rf5 {[%clk 0:00:57.3]} 34... Ng4 {[%clk 0:00:47.5]}
35. Bb3 {[%clk 0:00:54]} 35... Ne5 {[%clk 0:00:45.3]} 36. Bc2 {[%clk 0:00:54.9]}
36... Nc4 {[%clk 0:00:39.9]} 37. Bd3 {[%clk 0:00:49.5]} 37... Ne5 {[%clk
0:00:32.9]} 38. Bc2 {[%clk 0:00:50.5]} 38... Ke7 {[%clk 0:00:31.3]} 39. Bb3
{[%clk 0:00:49.9]} 39... Nd6 {[%clk 0:00:28.6]} 40. Rf2 {[%clk 0:00:48.6]} 40...
Nec4 {[%clk 0:00:29.3]} 41. Bc2 {[%clk 0:00:44.9]} 41... Ne4 {[%clk 0:00:29.6]}
42. Rf5 {[%clk 0:00:44.7]} 42... Rd6 {[%clk 0:00:30.6]} 43. Ke1 {[%clk
0:00:42.3]} 43... Kf7 {[%clk 0:00:30.9]} 44. Bd3 {[%clk 0:00:34.9]} 44... Ke6
{[%clk 0:00:30.9]} 45. Rf1 {[%clk 0:00:31.7]} 45... Ne5 {[%clk 0:00:30.8]} 46.
Bc2 {[%clk 0:00:28.2]} 46... Rc6 {[%clk 0:00:31.7]} 47. Kd1 {[%clk 0:00:29.5]}
47... f5 {[%clk 0:00:31.8]} 48. Bb3 {[%clk 0:00:27.1]} 48... Nd3 {[%clk
0:00:30.4]} 49. g4 {[%clk 0:00:23.5]} 49... Rc1+ {[%clk 0:00:29.4]} 50. Ke2
{[%clk 0:00:23.6]} 50... Nf4+ {[%clk 0:00:29]} 51. Rxf4 {[%clk 0:00:24.4]} 51...
gxf4 {[%clk 0:00:30.9]} 52. gxf5+ {[%clk 0:00:26.1]} 52... Kxf5 {[%clk
0:00:31.9]} 53. Bxd5 {[%clk 0:00:27.8]} 53... Nc3+ {[%clk 0:00:32.5]} 54. Kd2
{[%clk 0:00:28.2]} 54... Nxd5 {[%clk 0:00:33.5]} 55. Kxc1 {[%clk 0:00:28.6]}
55... Nxb4 {[%clk 0:00:34.2]} 56. Kd2 {[%clk 0:00:27.3]} 56... Ke4 {[%clk
0:00:34.9]} 57. Bb6 {[%clk 0:00:26.8]} 57... Nd5 {[%clk 0:00:34.6]} 58. Bc5
{[%clk 0:00:26.1]} 58... f3 {[%clk 0:00:35.3]} 59. Ke1 {[%clk 0:00:23.1]} 59...
b4 {[%clk 0:00:35.8]} 60. Kd2 {[%clk 0:00:24.1]} 60... b3 {[%clk 0:00:36.1]} 0-1